bitfinex-derivatives/quotes_ETHF0:USTF0_20240923
["timestamp","ask_amount","ask_price","bid_price","bid_amount"]
[1727102282221,1.385,2660.3,2659.9,3.58372]
[1727102282423,1.385,2660.3,2659.9,3.2078]
[1727102282424,1.76088,2660.3,2659.9,3.2078]
[1727102282622,1.76088,2660.3,2660.0,0.37591]
[1727102282826,1.76088,2660.3,2659.9,0.37592]
[1727102283027,1.76088,2660.3,2659.9,3.58372]
[1727102283215,0.37589,2660.2,2659.9,3.2078]
[1727102283416,1.385,2660.3,2659.9,3.2078]
[1727102283615,1.385,2660.3,2659.6,3.2078]
[1727102283823,0.37592,2660.0,2659.7,0.37595]
[1727102284027,2.53,2660.2,2659.6,3.2078]
[1727102284223,7.1115,2660.2,2659.6,3.2078]
[1727102284431,0.37596,2659.7,2659.6,3.2078]
[1727102284619,0.37601,2659.4,2659.1,3.58384]
[1727102285219,0.37603,2659.2,2659.1,3.2078]
[1727102285621,5.7378,2659.5,2659.1,3.58384]
[1727102285622,0.37601,2659.4,2659.1,3.58384]
[1727102285826,0.37602,2659.3,2659.1,3.2078]
[1727102286332,2.53,2659.5,2659.1,3.2078]
[1727102286333,0.37603,2659.2,2659.1,3.2078]
[1727102286524,0.37607,2658.9,2658.8,0.39503969]
[1727102287326,4.5815,2659.5,2658.8,4.15583969]
[1727102287527,0.37602,2659.3,2659.0,0.37605]
[1727102287729,1.3737,2659.5,2658.9,3.58386]
[1727102287730,0.37603,2659.2,2658.9,3.58386]
[1727102288033,0.37607,2658.9,2658.8,0.39503969]
[1727102288727,1.31626,2658.9,2658.8,0.39503969]
[1727102289141,0.37607,2658.9,2658.8,0.39503969]
[1727102289438,1.31626,2658.9,2658.8,0.39503969]
[1727102290133,1.31626,2658.9,2658.3,3.2078]
[1727102290134,9.7608,2658.9,2658.3,3.2078]
[1727102290433,3.2078,2659.0,2658.3,3.2078]
[1727102290434,0.94026,2658.7,2658.3,3.2078]
[1727102290728,0.37614,2658.4,2658.3,3.2078]
[1727102291723,0.37618,2658.1,2658.0,2.6719]
[1727102292135,0.94036,2658.4,2657.6,0.37625]
[1727102292136,0.94046,2658.2,2657.6,0.37625]
[1727102292627,0.37624,2657.7,2657.5,3.58406]
[1727102292831,3.2078,2658.2,2657.5,3.2078]
[1727102293131,0.37622,2657.9,2657.6,0.37625]
[1727102293336,0.37623,2657.8,2657.6,0.37625]
[1727102293523,0.37625,2657.7,2657.5,3.2078]
[1727102293926,0.94054,2657.9,2657.4,0.37627]
[1727102294125,0.37626,2657.6,2657.3,0.37629]
[1727102294322,0.37626,2657.6,2657.4,0.37628]
[1727102294633,0.94054,2657.9,2657.4,0.37628]
[1727102294634,0.37625,2657.7,2657.4,0.37628]
[1727102294939,0.37626,2657.6,2657.3,0.37629]
[1727102295132,3.2078,2658.0,2657.2,7.6106]
[1727102295133,0.37628,2657.5,2657.2,7.6106]
[1727102295332,0.9408,2657.2,2656.6,0.37639]
[1727102295635,0.94086,2657.0,2656.4,1.34920059]
[1727102295934,0.37641,2656.6,2656.4,0.97278059]
[1727102296135,0.37641,2656.5,2656.4,0.97278059]
[1727102296337,3.7648,2656.5,2656.0,4.55706059]
[1727102296524,2.53,2656.6,2656.0,4.18058059]
[1727102296737,3.47101,2656.6,2656.0,4.18058059]
[1727102297438,3.84765,2656.1,2656.0,0.97278059]
[1727102297732,1.31769,2656.0,2655.9,1.45917089]
[1727102297928,2.25907,2655.8,2654.4,6.15888517]
[1727102298125,12.2948,2656.0,2649.4,1.97029702]
[1727102298126,3.2078,2652.2,2649.4,1.97029702]
[1727102298331,3.58513,2650.1,2649.8,7.11389702]
[1727102298533,0.94283,2651.5,2649.2,3.2078]
[1727102298534,2.53,2649.9,2649.2,3.2078]
[1727102298736,2.53,2649.9,2648.5,1.4001]
[1727102298737,3.2078,2650.6,2649.8,7.11389702]
[1727102298925,3.2078,2650.6,2650.3,7.11389702]
[1727102299122,0.37737,2649.8,2649.3,7.23302799]
[1727102299328,0.37737,2649.8,2649.5,4.49982702]
[1727102299645,2.53,2650.9,2649.7,3.2078]
[1727102299938,3.2078,2650.6,2650.1,4.49982702]
[1727102300137,0.37731,2650.2,2649.7,3.2078]
[1727102300343,2.85,2650.2,2649.7,4.49982702]
[1727102301041,3.2078,2650.0,2649.7,4.49982702]
[1727102301229,2.85,2650.2,2649.8,4.49982702]
[1727102301426,3.2078,2650.7,2650.1,4.49982702]
[1727102301629,0.97473676,2650.8,2650.5,4.49982702]
[1727102301829,0.97473676,2650.8,2650.7,4.49982702]
[1727102303150,0.97473676,2650.8,2649.8,3.2078]
[1727102303151,6.97473676,2650.8,2649.8,3.2078]
[1727102303330,3.2078,2650.3,2650.1,4.49982702]
[1727102304129,3.2078,2650.3,2650.2,4.49982702]
[1727102304939,2.85,2650.5,2650.2,4.49982702]
[1727102305237,2.85,2650.5,2650.4,4.49982702]
[1727102305536,2.85,2650.5,2649.9,4.49982702]
[1727102305735,3.2078,2650.4,2650.1,3.71954702]
[1727102305941,2.85,2650.0,2649.2,0.088]
[1727102306135,2.85,2649.6,2649.2,3.71954702]
[1727102306435,2.85,2649.6,2648.7,3.2078]
[1727102306436,2.85,2649.6,2649.5,1.4535293]
[1727102306633,2.85,2650.0,2649.5,0.88702707]
[1727102306837,6.0578,2650.0,2649.9,0.88702707]
[1727102307335,9.8314,2650.0,2649.0,3.2078]
[1727102307537,6.0578,2650.0,2649.9,0.88702707]
[1727102307739,2.85,2650.0,2649.9,0.88702707]
[1727102308244,3.2078,2650.4,2649.4,3.2078]
[1727102308430,3.2078,2650.0,2648.9,3.2958]
[1727102308631,0.37736,2649.9,2649.2,3.2078]
[1727102308835,3.2078,2650.0,2649.2,3.2078]
[1727102309131,0.37739,2649.6,2648.7,9.6368]
[1727102309327,6.0578,2649.7,2648.7,9.6368]
[1727102309529,6.0578,2649.7,2649.0,3.2078]
[1727102309530,2.85,2649.7,2649.0,3.2078]
[1727102309736,2.85,2650.2,2649.6,3.2078]
[1727102310327,3.22732,2650.2,2649.6,3.2078]
[1727102310527,2.85,2650.6,2650.0,3.2078]
[1727102310929,0.37721,2650.9,2650.4,3.2078]
[1727102311242,2.85,2651.5,2650.7,3.58503]
[1727102311432,2.85,2651.1,2650.7,3.2078]
[1727102311734,3.2078,2651.0,2650.2,3.2078]
[1727102311938,2.85,2650.6,2650.2,3.2078]
[1727102312837,2.85,2650.6,2650.2,6.9806]
[1727102313028,2.85,2650.6,2650.2,13.3579]
[1727102313344,0.37721,2650.9,2650.2,6.9806]
[1727102313544,2.85,2651.0,2650.2,3.2078]
[1727102313837,3.2272,2651.0,2650.2,3.2078]
[1727102314037,2.85,2651.0,2650.2,3.2078]
[1727102314232,2.85,2650.6,2650.2,3.2078]
[1727102314430,2.85,2650.6,2649.8,1.2398]
[1727102314431,6.0578,2650.6,2649.8,3.2078]
[1727102314739,2.85,2650.1,2649.3,3.2078]
[1727102314930,2.85,2650.1,2649.7,0.37737]
[1727102315128,3.2078,2650.5,2649.9,3.2078]
[1727102315443,0.94302,2651.0,2648.7,1.13379]
[1727102315444,2.85,2651.0,2650.3,0.37729]
[1727102315628,2.85,2651.0,2650.2,3.2078]
[1727102315836,2.85,2650.5,2649.4,9.8308]
[1727102316146,2.85,2650.0,2649.4,3.2078]
[1727102316534,0.94326,2650.3,2648.7,6.705]
[1727102316535,0.37741,2649.5,2649.3,3.2078]
[1727102316837,0.37744,2649.3,2649.0,3.2078]
[1727102317043,2.85,2649.6,2649.0,3.2078]
[1727102317233,2.85,2649.6,2649.3,3.2078]
[1727102317538,0.37745,2649.2,2648.9,3.2078]
[1727102317741,2.85,2649.2,2648.5,3.2078]
[1727102317938,2.85,2648.8,2648.5,3.2078]
[1727102318136,2.85,2648.8,2648.4,3.2078]
[1727102318339,0.37753,2648.7,2648.4,3.2078]
[1727102318735,2.85,2648.8,2648.4,3.2078]
[1727102319140,0.37754,2648.6,2648.1,3.2078]
[1727102319339,2.85,2648.3,2648.1,3.2078]
[1727102319536,3.22758,2648.3,2648.1,3.2078]
[1727102319749,6.9838,2648.2,2647.5,3.2078]
[1727102319942,6.0578,2647.8,2647.1,3.2078]
[1727102320138,2.85,2647.2,2647.1,3.2078]
[1727102320443,2.85,2647.2,2646.4,0.19]
[1727102320444,3.22773,2647.2,2646.8,3.2078]
[1727102320640,1.88751,2648.9,2646.8,6.9854]
[1727102320641,2.85,2647.7,2646.8,6.9854]
[1727102320838,2.85,2647.7,2647.1,3.2078]
[1727102321041,2.85,2647.7,2646.3,0.94466]
[1727102321042,2.85,2647.7,2647.0,3.2078]
[1727102321241,2.85,2647.7,2647.3,3.2078]
[1727102321643,2.85,2647.7,2646.9,3.2078]
[1727102321644,3.7768,2647.6,2646.9,3.2078]
[1727102321849,2.85,2647.0,2646.9,3.2078]
[1727102322047,7.00536,2647.0,2646.9,3.2078]
[1727102322345,12.6376,2647.0,2646.1,3.2078]
[1727102322546,2.85,2646.2,2645.3,0.19]
[1727102322744,2.85,2646.6,2646.3,0.37785]
[1727102322935,2.85,2646.6,2646.4,3.2078]
[1727102323338,2.85,2646.6,2646.1,3.2078]
[1727102323538,2.85,2646.2,2645.8,3.2078]
[1727102323737,2.85,2646.2,2645.4,3.2078]
[1727102323945,2.85,2646.2,2645.2,1.2849]
[1727102323946,2.85,2645.8,2645.7,3.2078]
[1727102324134,2.85,2646.1,2645.1,3.2078]
[1727102324341,2.85,2646.1,2645.7,3.2078]
[1727102324540,2.85,2646.1,2646.0,3.2078]
[1727102324738,2.85,2646.1,2646.0,6.987]
[1727102325146,0.37786,2646.4,2646.0,6.987]
[1727102325443,3.22783,2646.5,2646.3,3.2078]
[1727102325644,2.85,2646.5,2646.3,3.2078]
[1727102325848,0.37785,2646.4,2646.2,3.2078]
[1727102326046,2.85,2646.5,2646.2,3.2078]
[1727102326248,2.85,2646.5,2646.3,3.7784]
[1727102326441,2.86,2647.0,2646.3,3.7784]
[1727102326636,2.86,2647.0,2645.2,0.94503]
[1727102326637,2.85,2646.5,2646.1,3.58569]
[1727102326848,2.85,2646.5,2646.3,3.2078]
[1727102327144,2.85,2646.5,2646.0,3.2078]
[1727102327347,2.85,2646.5,2646.0,3.5857]
[1727102327555,3.2078,2646.8,2646.0,3.2078]
[1727102327742,2.85,2646.2,2646.0,3.2078]
[1727102328051,3.22788,2646.2,2646.0,3.2078]
[1727102328241,2.85,2646.6,2646.0,3.2078]
[1727102328439,2.85,2646.6,2646.4,3.2078]
[1727102328642,0.38777,2647.0,2646.4,3.2078]
[1727102328643,0.37778,2646.9,2646.4,3.2078]
[1727102328948,0.01,2647.0,2646.8,3.2078]
[1727102329343,0.01,2647.0,2646.9,4.15618]
[1727102329546,0.37764,2647.9,2646.9,9.7784]
[1727102329745,0.37764,2647.9,2647.5,3.2078]
[1727102329948,3.2078,2648.3,2647.5,3.2078]
[1727102330142,2.85,2648.4,2648.2,3.2078]
[1727102330342,2.85,2648.8,2648.2,11.63]
[1727102330542,2.85,2648.8,2648.3,0.37757]
[1727102330744,2.85,2649.2,2648.6,3.2078]
[1727102331049,2.85,2649.2,2648.9,3.2078]
[1727102331251,2.85,2649.2,2648.9,9.2078]
[1727102331546,2.85,2649.2,2648.9,3.2078]
[1727102331755,2.85,2649.2,2649.0,3.7752]
[1727102331941,2.85,2649.2,2648.9,3.2078]
[1727102332447,2.85,2649.2,2649.0,3.7752]
[1727102332954,3.22745,2649.2,2648.9,3.2078]
[1727102333143,2.85,2649.2,2649.0,3.7752]
[1727102333444,2.85,2649.6,2649.3,0.37743]
[1727102333655,2.85,2650.0,2649.4,3.2078]
[1727102333841,0.37736,2649.9,2649.4,3.58522]
[1727102334044,3.22734,2650.0,2649.4,3.58522]
[1727102334245,2.85,2650.0,2649.5,3.7744]
[1727102334445,2.85,2650.0,2649.4,3.2078]
[1727102334446,2.85,2650.0,2649.7,3.2078]
[1727102334648,2.85,2650.0,2649.8,3.7736]
[1727102334952,2.85,2650.0,2649.4,3.2078]
[1727102335255,2.85,2649.5,2649.4,3.2078]
[1727102335448,3.22741,2649.5,2649.4,3.2078]
[1727102335851,2.85,2649.5,2649.4,6.9822]
[1727102336241,1.32102,2649.3,2649.2,11.63]
[1727102336455,0.37747,2649.1,2648.9,3.2573]
[1727102336646,2.85,2649.0,2648.9,3.2573]
[1727102336840,2.85,2649.3,2648.9,6.84258]
[1727102337045,2.85,2649.3,2648.9,6.4651]
[1727102337248,2.85,2649.3,2649.0,4.15267]
[1727102337452,0.94322,2650.4,2649.0,3.7752]
[1727102337749,6.0578,2650.1,2649.3,0.37743]
[1727102337956,6.0578,2650.1,2649.6,3.58519]
[1727102337957,2.85,2650.1,2649.6,3.58519]
[1727102338175,2.85,2650.1,2649.9,3.2078]
[1727102338458,6.0578,2650.5,2649.9,3.2078]
[1727102338759,2.85,2650.1,2649.9,3.2078]
[1727102338941,0.37733,2650.0,2649.9,3.2078]
[1727102339147,0.37741,2649.5,2649.3,3.2078]
[1727102339348,2.85,2649.4,2649.3,3.2078]
[1727102339755,2.85,2649.4,2649.3,6.9822]
[1727102340052,2.85,2649.4,2648.9,3.2573]
[1727102340249,2.85,2649.0,2648.9,3.2573]
[1727102340555,2.85,2649.0,2648.9,6.4651]
[1727102340865,2.85,2649.4,2648.9,16.2403]
[1727102341159,2.85,2649.0,2648.9,6.4651]
[1727102341660,2.85,2649.0,2648.9,10.2403]
[1727102342050,3.22748,2649.0,2648.9,6.4651]
[1727102342263,2.85,2649.0,2648.9,3.2573]
[1727102342454,1.88659,2650.2,2648.9,7.0325]
[1727102342455,3.22741,2649.5,2648.9,7.0325]
[1727102342651,0.37737,2649.8,2649.4,3.2078]
[1727102342853,2.85,2649.5,2648.9,6.4651]
[1727102343061,3.2078,2649.7,2648.9,6.4651]
[1727102343257,2.85,2649.8,2649.2,3.2078]
[1727102343563,2.85,2649.8,2649.5,3.2078]
[1727102343749,2.85,2649.8,2649.6,0.37738]
[1727102343952,2.85,2650.2,2649.6,3.7744]
[1727102344249,2.85,2650.2,2649.1,0.94366]
[1727102344250,2.85,2650.2,2649.9,0.37734]
[1727102344456,2.85,2650.2,2649.8,3.2078]
[1727102344457,2.85,2650.2,2650.0,3.7736]
[1727102344650,2.85,2650.2,2649.9,3.7736]
[1727102345051,2.85,2650.2,2650.1,3.2078]
[1727102345455,2.85,2650.2,2650.1,3.7736]
[1727102345659,2.85,2650.2,2649.2,1.2692]
[1727102345660,2.85,2650.2,2649.4,3.2078]
[1727102346055,0.37727,2650.5,2650.1,3.2078]
[1727102346359,2.85,2650.6,2649.7,3.2078]
[1727102346560,0.3773,2650.3,2649.9,0.37734]
[1727102346756,2.85,2650.1,2649.9,0.37734]
[1727102347066,2.85,2650.1,2650.0,4.15093]
[1727102347269,2.85,2650.1,2650.0,3.7736]
[1727102348059,2.85,2650.1,2650.0,10.15093]
[1727102348465,2.92602606,2650.2,2650.1,0.37732]
[1727102348660,1.46301303,2650.2,2650.1,3.2078]
[1727102348962,1.46301303,2650.2,2650.1,9.58512]
[1727102349157,2.43829615,2650.2,2650.1,9.58512]
[1727102349466,1.46301303,2650.2,2650.1,13.35872]
[1727102349857,2.92596716,2650.5,2650.4,0.37728]
[1727102350057,1.95068404,2650.5,2650.4,10.52828]
[1727102350267,1.95068404,2650.5,2650.4,14.30108]
[1727102350763,1.95068404,2650.5,2650.4,13.35788]
[1727102351062,2.43835505,2650.8,2650.4,12.9806]
[1727102351265,0.37729,2650.3,2649.8,0.37736]
[1727102351460,0.37735,2649.9,2649.7,3.2078]
[1727102351664,0.37736,2649.9,2649.4,3.2078]
[1727102351965,0.97528312,2650.2,2649.4,3.2078]
[1727102352269,1.46301303,2650.4,2649.0,1.2553]
[1727102352270,2.8314523,2650.3,2649.7,3.2078]
[1727102352468,2.8314523,2650.3,2649.8,3.2078]
[1727102352664,2.8314523,2650.3,2649.9,0.37734]
[1727102352864,2.8314523,2649.9,2649.8,3.2078]
[1727102353064,2.8314523,2649.9,2649.2,3.2078]
[1727102353265,2.8314523,2649.4,2649.2,0.37744]
[1727102353461,2.8314523,2649.4,2649.1,3.2078]
[1727102353768,2.85,2649.7,2649.1,3.2078]
[1727102353959,2.8314523,2649.5,2649.1,3.58526]
[1727102354768,0.37748,2649.0,2648.9,3.2573]
[1727102354956,6.0392523,2649.2,2648.9,3.63478]
[1727102354957,3.2078,2649.2,2648.9,3.63478]
[1727102355161,6.0392523,2649.2,2648.9,3.2573]
[1727102355363,3.2078,2649.6,2648.9,7.0325]
[1727102355569,3.82528312,2649.8,2649.5,0.3774]
[1727102355865,2.8314523,2649.3,2649.2,0.37745]
[1727102356166,2.8314523,2649.3,2649.1,0.37745]
[1727102356167,6.0392523,2649.3,2649.1,0.37745]
[1727102356468,3.2089123,2649.2,2648.9,3.2573]
[1727102356774,6.0392523,2649.0,2648.9,3.2573]
[1727102356971,9.2667323,2649.0,2648.9,3.2573]
[1727102357164,8.8892523,2649.0,2648.9,3.2573]
[1727102357463,11.6814523,2649.0,2647.9,3.2078]
[1727102357669,2.8314523,2648.0,2647.4,4.5379]
[1727102357869,0.94381,2648.7,2647.3,2.5741]
[1727102357870,2.85,2647.7,2647.3,2.5741]
[1727102358059,2.8314523,2647.5,2646.9,0.3778]
[1727102358262,2.8314523,2647.5,2646.6,0.75561]
[1727102358263,2.8314523,2647.0,2646.6,0.75561]
[1727102358468,2.8314523,2647.0,2646.2,3.2078]
[1727102358469,2.8314523,2646.5,2645.5,2.4436]
[1727102358669,2.8314523,2646.7,2645.8,3.2078]
[1727102358860,6.0578,2646.9,2646.1,3.2078]
[1727102359070,2.8314523,2646.8,2646.1,3.2078]
[1727102359268,3.2078,2647.2,2646.1,12.9862]
[1727102359476,2.8314523,2647.0,2646.5,3.2078]
[1727102359769,2.8314523,2647.0,2645.8,3.2078]
[1727102359770,2.8314523,2646.5,2645.8,3.2078]
[1727102359961,2.8314523,2646.3,2645.9,0.37791]
[1727102360160,2.8314523,2646.3,2645.5,2.4436]
[1727102360373,2.8314523,2645.9,2645.1,3.2078]
[1727102360672,5.6814523,2646.2,2645.6,0.37796]
[1727102360868,3.2078,2646.3,2645.4,3.2078]
[1727102361084,2.8314523,2646.1,2645.4,3.2078]
[1727102361271,2.8314523,2646.1,2645.7,0.37794]
[1727102361583,2.8314523,2645.7,2645.4,3.2078]
[1727102361760,3.2078,2646.0,2645.4,3.2078]
[1727102361761,3.2078,2646.0,2645.6,0.01]
[1727102362161,3.2078,2646.0,2645.7,0.37795]
[1727102362374,2.8314523,2645.8,2645.6,0.01]
[1727102362571,3.2078,2646.0,2645.6,0.01]
[1727102362765,2.85,2646.2,2645.8,0.37793]
[1727102362961,5.6814523,2646.2,2645.7,0.37795]
[1727102363170,2.8314523,2646.2,2645.6,0.01]
[1727102363371,2.8314523,2646.0,2645.6,0.01]
[1727102363573,6.0392523,2645.7,2645.6,0.01]
[1727102363875,6.0392523,2645.7,2644.3,3.2078]
[1727102364074,3.58591,2644.6,2643.9,0.3782]
[1727102364265,2.85,2644.8,2644.3,3.2078]
[1727102364468,3.2078,2645.4,2644.9,0.37806]
[1727102364663,1.2149,2645.7,2644.4,3.2078]
[1727102364664,2.8314523,2644.9,2644.4,3.2078]
[1727102364877,2.8314523,2644.7,2644.1,3.2078]
[1727102365075,2.8314523,2644.4,2644.2,0.37815]
[1727102365275,2.8314523,2644.5,2644.1,3.2078]
[1727102365465,2.85,2644.7,2644.2,0.37815]
[1727102365777,3.2078,2644.5,2643.3,3.2078]
[1727102365977,2.8314523,2644.2,2643.6,3.2078]
[1727102366168,3.2078,2644.6,2643.6,3.2078]
[1727102366372,3.2078,2644.6,2643.6,4.15341]
[1727102366675,2.8314523,2644.5,2643.9,3.2078]
[1727102366873,2.8314523,2644.4,2644.1,0.37817]
[1727102367072,2.8314523,2644.4,2643.9,3.2078]
[1727102367073,6.0392523,2644.6,2643.9,3.2078]
[1727102367677,2.8314523,2644.6,2644.3,0.37814]
[1727102367975,6.0578,2644.9,2643.9,3.2078]
[1727102368178,6.0578,2644.9,2643.1,1.2808]
[1727102368179,2.8314523,2644.7,2644.1,3.2078]
[1727102368368,6.0578,2644.9,2644.2,3.2078]
[1727102368569,2.8314523,2644.6,2644.4,0.37812]
[1727102368882,2.8314523,2644.7,2644.2,3.05253112]
[1727102369173,2.8314523,2644.3,2643.8,3.2078]
[1727102369378,2.8314523,2644.1,2643.3,3.2078]
[1727102369674,2.8314523,2643.9,2643.3,3.2078]
[1727102369876,2.8314523,2644.1,2643.7,3.58603]
[1727102370077,2.85,2644.7,2644.0,3.2078]
[1727102370266,2.85,2644.7,2643.1,1.2808]
[1727102370267,2.8314523,2644.3,2643.8,3.2078]
[1727102370482,2.8314523,2644.5,2644.2,0.37815]
[1727102370773,2.8314523,2644.5,2643.8,3.2078]
[1727102370774,6.0578,2645.6,2644.4,3.2078]
[1727102370969,6.0578,2645.6,2643.9,0.94552]
[1727102370970,2.8314523,2645.2,2644.9,0.37805]
[1727102371167,2.8314523,2645.4,2644.7,3.2078]
[1727102371372,3.2078,2646.0,2645.0,3.2078]
[1727102371576,3.2078,2646.0,2644.2,2.528]
[1727102371577,2.8314523,2645.6,2644.8,3.2078]
[1727102371778,2.8314523,2645.6,2645.4,0.37798]
[1727102372075,2.8314523,2645.6,2644.4,4.21535908]
[1727102372076,2.8314523,2644.9,2644.4,4.21535908]
[1727102372382,2.8314523,2644.5,2643.9,3.2078]
[1727102372680,2.85,2644.9,2643.9,3.2078]
[1727102372681,2.8314523,2644.3,2643.9,3.2078]
[1727102372879,2.85,2645.2,2644.7,0.37808]
[1727102373079,2.8314523,2645.3,2644.6,3.2078]
[1727102373381,0.94462,2646.5,2644.6,3.2078]
[1727102373382,2.85,2645.8,2645.3,0.378]
[1727102373578,2.8314523,2645.6,2645.3,0.378]
[1727102373878,4.86403,2645.9,2644.9,3.2078]
[1727102373879,4.4861,2645.9,2644.9,3.2078]
[1727102374080,2.8314523,2645.7,2644.9,3.2078]
[1727102374382,2.8314523,2645.6,2644.9,3.2078]
[1727102374570,2.8314523,2645.2,2645.1,0.37803]
[1727102374772,2.8314523,2645.2,2645.0,0.37805]
[1727102374971,2.8314523,2645.2,2644.9,3.2078]
[1727102375176,3.2078,2645.7,2645.3,0.37799]
[1727102375379,2.8314523,2645.6,2644.9,3.2078]
[1727102375674,3.2078,2646.0,2645.2,3.2078]
[1727102375881,2.85,2646.6,2645.5,3.2078]
[1727102375882,2.8314523,2646.1,2645.5,3.2078]
[1727102376069,2.8314523,2646.6,2645.5,3.2078]
[1727102376275,2.85,2647.4,2646.1,3.2078]
[1727102376572,2.85,2647.4,2645.9,0.9448]
[1727102376573,3.2078,2647.1,2646.4,3.2078]
[1727102376775,2.8314523,2647.3,2647.1,0.37774]
[1727102376975,2.85,2647.8,2647.3,0.37771]
[1727102377178,2.8314523,2647.7,2647.2,0.37773]
[1727102377479,2.8314523,2647.7,2646.9,0.94445]
[1727102377981,3.2078,2647.8,2646.9,0.94445]
[1727102378286,2.8314523,2647.5,2646.8,3.2078]
[1727102378480,2.8314523,2647.5,2647.4,0.37771]
[1727102378785,6.0578,2648.2,2647.7,0.37765]
[1727102378977,3.2078,2648.2,2647.0,0.94441]
[1727102379177,3.2078,2648.2,2646.9,4.13661291]
[1727102379178,0.37761,2648.1,2647.5,0.37768]
[1727102379382,2.8314523,2648.0,2647.7,0.37765]
[1727102379577,2.8314523,2648.1,2647.7,0.37765]
[1727102379883,3.2078,2647.9,2647.1,1.3142]
[1727102380183,3.2078,2647.2,2646.4,3.2078]
[1727102380480,6.0392523,2647.1,2646.6,0.37782]
[1727102380686,6.0392523,2647.1,2646.4,3.2078]
[1727102380882,2.8314523,2646.9,2646.3,0.37786]
[1727102381188,2.8314523,2646.5,2646.2,0.37787]
[1727102381484,2.8314523,2646.5,2645.3,0.94501]
[1727102381485,2.8314523,2646.3,2645.9,3.2078]
[1727102381675,2.8314523,2646.1,2645.5,3.2078]
[1727102381874,2.8314523,2646.1,2645.9,0.37792]
[1727102382181,6.0392523,2646.1,2645.8,0.37793]
[1727102382381,2.8314523,2646.1,2645.6,0.37796]
[1727102382682,2.8314523,2646.1,2645.5,3.2078]
[1727102383186,3.2078,2646.4,2645.6,4.72411]
[1727102383481,3.2078,2646.4,2645.5,9.2078]
[1727102383482,2.8314523,2645.6,2644.4,0.19]
[1727102383784,5.6814523,2644.9,2644.2,3.2078]
[1727102383987,5.6814523,2644.9,2643.6,3.2078]
[1727102383988,2.8314523,2644.6,2643.6,3.2078]
[1727102384186,3.2078,2644.7,2643.6,7.53538366]
[1727102384483,6.0578,2645.4,2643.9,3.2078]
[1727102384675,2.8314523,2645.2,2643.9,3.2078]
[1727102384874,3.2078,2645.1,2644.8,0.37808]
[1727102385076,3.2078,2645.1,2644.3,0.94538]
[1727102385274,3.2078,2645.4,2644.2,6.9894]
[1727102385480,5.6814523,2645.3,2644.5,3.940317]
[1727102385788,2.8314523,2644.3,2644.1,0.37817]
[1727102385982,6.0392523,2644.3,2644.0,0.37818]
[1727102386382,6.0392523,2644.3,2643.7,3.2078]
[1727102386575,2.85,2645.0,2643.8,3.7824]
[1727102386576,3.2078,2644.6,2643.8,3.7824]
[1727102386782,3.2078,2644.6,2644.1,3.2078]
[1727102387081,3.2078,2645.0,2644.7,0.37808]
[1727102387382,3.2078,2645.0,2644.4,3.2078]
[1727102387586,3.2078,2645.0,2644.6,0.3781]
[1727102387791,3.2078,2644.7,2644.6,0.3781]
[1727102388087,2.8314523,2644.7,2643.8,3.2078]
[1727102388284,6.0392523,2644.7,2644.4,0.37813]
[1727102388482,6.0392523,2644.7,2643.8,4.2134426]
[1727102388677,0.37811,2644.6,2643.8,4.2134426]
[1727102388881,6.0392523,2644.6,2643.6,3.2078]
[1727102389279,6.0392523,2644.6,2643.9,3.2078]
[1727102389884,3.2078,2645.0,2644.7,0.37808]
[1727102390085,2.8314523,2644.9,2644.7,0.37808]
[1727102390280,3.2078,2645.0,2644.3,3.2078]
[1727102390281,6.0392523,2645.0,2644.3,3.2078]
[1727102390491,6.0392523,2644.7,2644.3,0.37813]
[1727102390678,6.0392523,2644.7,2644.3,0.37814]
[1727102390878,0.37811,2644.6,2644.1,0.37817]
[1727102391077,2.8314523,2644.3,2644.1,0.37817]
[1727102391382,6.0392523,2644.2,2643.2,3.2078]
[1727102391576,6.0392523,2644.2,2644.0,0.37819]
[1727102391780,0.94518,2644.9,2643.4,0.9457]
[1727102391781,3.2078,2644.5,2644.4,0.37813]
[1727102391985,3.2078,2644.8,2644.1,7.39434297]
[1727102392293,3.2078,2644.8,2644.7,0.37809]
[1727102392487,6.0392523,2644.8,2644.5,0.37811]
[1727102392789,2.8314523,2644.7,2644.5,0.37812]
[1727102392986,2.8314523,2644.7,2643.9,0.94552]
[1727102392987,2.8314523,2644.7,2644.0,3.2078]
[1727102393184,3.2078,2645.2,2644.4,3.2078]
[1727102393386,2.8314523,2645.0,2644.9,0.37806]
[1727102393687,3.2078,2645.2,2644.0,5.10276749]
[1727102393688,2.8314523,2644.7,2644.0,5.10276749]
[1727102393882,1.2188,2645.3,2644.7,0.37809]
[1727102393883,3.2078,2644.8,2644.7,0.37809]
[1727102394085,3.2078,2645.1,2645.0,0.37805]
[1727102394281,3.2078,2645.1,2644.5,3.2078]
[1727102394479,2.8314523,2645.0,2644.4,0.94534]
[1727102394685,3.2078,2644.8,2644.7,0.37809]
[1727102395186,3.2078,2644.8,2644.7,10.15889]
[1727102395581,3.2078,2645.2,2645.0,0.37804]
[1727102395782,6.0392523,2645.2,2645.0,0.37804]
[1727102396082,6.0392523,2645.2,2645.1,0.37803]
[1727102396285,6.0392523,2645.2,2645.0,0.37804]
[1727102396885,6.0392523,2645.2,2644.6,0.94527]
[1727102397087,6.0392523,2645.2,2644.5,3.2078]
[1727102397286,6.4172823,2645.2,2644.5,3.2078]
[1727102397487,2.8314523,2645.1,2645.0,0.37805]